Cogmind - Beta 11.1 @@@ ROGUE MODE // 2022.06.09 @ 12:07:36 // AFD2019/Pay2Buy Player: Exp. Geonium Core Result: Self-destructed Performance ------------- Evolutions (1) 500 Regions Visited (3) 600 Robots Destroyed (11) 55 Value Destroyed (337) 337 Prototype IDs (1) 20 Alien Tech Used (0) 0 Bonus (27) 27 TOTAL SCORE: 1539 Bonus ------- High Alert Combat Kills 27 Cogmind --------- Core Integrity 200/400 Matter 17/300 Energy 14/100 System Corruption 0% Temperature Cool (0) Movement Core (50) Location -9/Materials Parts ------- > --- POWER (1) -------- (None) > --- PROPULSION (2) --- (None) > --- UTILITY (4) ------ Advanced Targeting Computer Hacking Suite > --- WEAPON (2) ------- (None) > --- INVENTORY (10) --- Heavy EM Pulse Gun Enhanced Autogun Peak State ------------ > --- POWER ------------ (None) > --- PROPULSION ------- Flight Unit > --- UTILITY ---------- Advanced Targeting Computer Hacking Suite > --- WEAPON ----------- Heavy EM Pulse Gun Enhanced Autogun > --- INVENTORY -------- Heavy EM Pulse Gun [Rating: 13] Favorites ----------- Power None Propulsion Improved Treads Treads Improved Treads Flight Unit Flight Unit Utility Hacking Suite Processor Advanced Targeting Computer Hackware Hacking Suite Weapon Mining Claw Energy Gun Heavy EM Pulse Gun Ballistic Gun Enhanced Autogun Launcher Mini Grenade Launcher Slashing Weapon Mining Claw Build | -11 -10 -10 -9 ------- Run | Scr Mat Min Mat Slots Evolved 2 | . . . 2 Power . | . . . . Propulsion . | . . . . Utility 2 | . . . 2 Weapon . | . . . . Parts Attached 2 | . . . 2 Power . | . . . . Engine . | . . . . Core . | . . . . Reactor . | . . . . Propulsion . | . . . . Treads . | . . . . Leg . | . . . . Wheel . | . . . . Hover . | . . . . Flight . | . . . . Utility . | . . . . Device . | . . . . Storage . | . . . . Processor . | . . . . Hackware . | . . . . Protection . | . . . . Artifact . | . . . . Weapon 2 | . . . 2 Energy Gun 1 | . . . 1 Energy Cannon . | . . . . Ballistic Gun 1 | . . . 1 Ballistic Cannon . | . . . . Launcher . | . . . . Special Weapon . | . . . . Impact Weapon . | . . . . Slashing Weapon . | . . . . Piercing Weapon . | . . . . Special Melee Weapon . | . . . . Unidentified Prototypes . | . . . . Parts Lost 5 | . 2 . 3 Power . | . . . . Propulsion 3 | . 1 . 2 Utility . | . . . . Weapon 2 | . 1 . 1 Highest Loss Streak 2 | . 2 . 2 To Critical Strikes 1 | . . . 1 Average Slot Usage (%) 33 | . 33 14 37 Treads 8 | . 12 . . Flight 3 | . . 14 11 Processor 1 | . . . 7 Hackware 2 | . . . 9 Energy Gun 1 | . . . 7 Launcher 6 | . 9 . . Slashing Weapon 8 | . 12 . . Naked Turns 13 | . 2 11 . Heaviest Build 6 | 2 3 . 6 Greatest Support 23 | 23 3 8 8 Greatest Overweight (x) . | . . . . Average Overweight (x) . | . . . . Largest Inventory Capacity 10 | . 10 10 10 Average Capacity 10 | . 10 10 10 Most Carried 3 | . . . 3 Average Carried . | . . . 1 Final Capacity 10 | 10 10 10 10 Final Carried 2 | . . . 2 Class Distribution -------------------- 100% | Mutant Dominant Class ---------------- Mutant | -10/Materials Mutant | -10/Mines Mutant | -9/Materials Resources | -11 -10 -10 -9 ----------- Run | Scr Mat Min Mat Matter Collected 98 | . 98 . . Remotely . | . . . . Salvage Created 276 | . 185 . 91 Parts . | . . . . Haulers Intercepted 1 | . 1 . . Recyclers Shooed . | . . . . Parts Field Recycled . | . . . . Retrieved Matter . | . . . . Parts Self-Destructed . | . . . . Prevented . | . . . . Kills | -11 -10 -10 -9 ------- Run | Scr Mat Min Mat Combat Hostiles Destroyed 8 | . 6 . 2 Melee 1 | . 1 . . Guns 2 | . . . 2 AOE 5 | . 5 . . Classes Destroyed 5 | . 3 . 2 Builder 1 | . . . 1 Hauler 1 | . 1 . . Watcher 1 | . 1 . . Swarmer 1 | . . . 1 Grunt 7 | . 6 . 1 Best Kill Streak 4 | . 4 . 2 Combat Bots Only 3 | . 3 . 1 Max Kills in Single Turn 2 | . 2 . 1 Gunslinging . | . . . . Exploded 1 | . 1 . . Melee 1 | . 1 . . Uniques/NPCs Destroyed . | . . . . Combat | -11 -10 -10 -9 -------- Run | Scr Mat Min Mat Damage Taken 914 | . 462 16 436 Core 433 | . 217 16 200 Absorbed by Shields . | . . . . Core Remaining (%) 53 | 100 . 6 . Volleys Fired 32 | . 17 . 15 Largest 2 | . 1 . 2 Hottest 90 | . 30 . 90 Shots Fired 35 | . 17 . 18 Gun 18 | . . . 18 Cannon . | . . . . Launcher 17 | . 17 . . Special . | . . . . Kinetic 5 | . . . 5 Thermal . | . . . . Explosive 17 | . 17 . . Electromagnetic 13 | . . . 13 Robot Hit Streak 6 | . 1 . 6 Robot Miss Streak 3 | . 3 . 3 Penetration Max . | . . . . Secondary Targets 1 | . . . 1 Max Gunslinging Chain 1 | . . . 1 Shots Hit Robots 31 | . 18 . 13 Core Hits 16 | . 12 . 4 Critical Kills . | . . . . Critical Parts Destroyed . | . . . . Critical Strikes . | . . . . Melee Attacks 24 | . 24 . . Impact . | . . . . Slashing 24 | . 24 . . Piercing . | . . . . Sneak Attacks 2 | . 2 . . Combat Hostiles . | . . . . Follow-up Attacks . | . . . . Damage Inflicted 1235 | . 992 . 243 Guns 229 | . . . 229 Cannons . | . . . . Explosions 639 | . 639 . . Melee 353 | . 353 . . Ramming 14 | . . . 14 Kinetic 88 | . . . 88 Thermal . | . . . . Explosive 639 | . 639 . . Electromagnetic 141 | . . . 141 Impact . | . . . . Slashing 353 | . 353 . . Piercing . | . . . . Highest Corruption . | . . . . Average Corruption . | . . . . Corruption Purged . | . . . . Corruption Blocked . | . . . . Overload Shots . | . . . . Overflow Damage 22 | . 22 . . Projectiles . | . . . . Explosions 11 | . 11 . . Melee 11 | . 11 . . Knockbacks . | . . . . Impact . | . . . . Kinetic . | . . . . Secondary . | . . . . Self-Inflicted Damage 24 | . 17 . 7 Shots 1 | . 1 . . Rammed 1 | . . . 1 Targets Rammed 1 | . . . 1 Kicked . | . . . . Crushed . | . . . . Highest Temperature 81 | . 10 . 81 Average Temperature 22 | . 6 . 29 Received Heat Transfer 396 | . 249 9 138 Siege Activations . | . . . . Robots Corrupted . | . . . . Combat Hostiles . | . . . . Parts Fried . | . . . . Impact Corruptions . | . . . . Robots Melted . | . . . . Combat Hostiles . | . . . . Parts Melted . | . . . . Heat Transferred . | . . . . Parts Sabotaged . | . . . . Parts Stolen . | . . . . Parts Stripped . | . . . . Power Chain Reactions . | . . . . Missiles Intercepted . | . . . . Alert | -11 -10 -10 -9 ------- Run | Scr Mat Min Mat Peak Influence 485 | . 485 184 148 Initial 184 | . . 184 71 Average 179 | . 203 184 107 Maximum Alert Level 2 | . 2 . . Low Security (%) 67 | . 53 100 100 Level 1 20 | . 29 . . Level 2 11 | . 17 . . Level 3 . | . . . . Level 4 . | . . . . Level 5 . | . . . . High Security . | . . . . Max Security . | . . . . Squads Dispatched 4 | . 2 . 2 Investigation 3 | . 1 . 2 Extermination . | . . . . Reinforcement 1 | . 1 . . Assault . | . . . . Garrison . | . . . . Intercept . | . . . . Searches Triggered . | . . . . Construction Impeded . | . . . . Haulers Reinforced . | . . . . Active Scanning Responses . | . . . . Cargo Convoy Interrupts . | . . . . Stealth | -11 -10 -10 -9 --------- Run | Scr Mat Min Mat Distress Signals 1 | . 1 . . Communications Jammed . | . . . . Distress Signals . | . . . . Times Spotted 22 | . 10 2 10 Peak Tracking Total 6 | . 5 2 6 Tactical Retreats 2 | . . . 2 Traps | -11 -10 -10 -9 ------- Run | Scr Mat Min Mat Traps Triggered 2 | . 2 . . Indirectly . | . . . . Trap Hack Attempts . | . . . . Triggered . | . . . . Disarmed . | . . . . Reprogrammed . | . . . . Reused . | . . . . Traps Extracted . | . . . . Installed . | . . . . Triggered . | . . . . Machines | -11 -10 -10 -9 ---------- Run | Scr Mat Min Mat Machines Disabled 4 | . 4 . . Max in Single Turn 1 | . 1 . . Machines Sabotaged . | . . . . Garrisons Compromised . | . . . . Overloaded Fab Kills . | . . . . Hacking | -11 -10 -10 -9 --------- Run | Scr Mat Min Mat Machines Accessed 4 | . 2 . 2 Terminals 4 | . 2 . 2 Fabricators . | . . . . Repair Stations . | . . . . Recycling Units . | . . . . Scanalyzers . | . . . . Garrison Access . | . . . . Total Hacks 10 | . 5 . 5 Successful 5 | . 3 . 2 Failed 4 | . 1 . 3 Catastrophic . | . . . . Database Lockouts 1 | . 1 . . Manual 6 | . 2 . 4 Terminals 10 | . 5 . 5 Fabricators . | . . . . Repair Stations . | . . . . Recycling Units . | . . . . Scanalyzers . | . . . . Garrison Access . | . . . . Terminal Hacks 4 | . 3 . 1 Robot Analysis 1 | . 1 . . Level Access Points 1 | . . . 1 Terminal Index 1 | . 1 . . Registered Components 1 | . 1 . . Fabricator Hacks . | . . . . Repair Station Hacks . | . . . . Recycling Unit Hacks . | . . . . Scanalyzer . | . . . . Garrison Access Hacks . | . . . . Unauthorized Hacks 1 | . . . 1 Terminals 1 | . . . 1 Sabotage 1 | . . . 1 Fabricators . | . . . . Repair Stations . | . . . . Recycling Units . | . . . . Scanalyzers . | . . . . Garrison Access . | . . . . Data Cores Recovered . | . . . . Used . | . . . . Hacking Detections 2 | . 1 . 1 Full Trace Events 1 | . . . 1 Feedback Events . | . . . . Feedback Blocked . | . . . . Robot Schematics Acquired . | . . . . Robots Built . | . . . . Authchips . | . . . . Time . | . . . . Total Robot Build Rating . | . . . . Part Schematics Acquired . | . . . . Parts Built . | . . . . Authchips . | . . . . Time . | . . . . Total Part Build Rating . | . . . . Parts Repaired . | . . . . Time . | . . . . Parts Recycled . | . . . . Recycled Matter . | . . . . Retrieved Matter . | . . . . Retrieved Components . | . . . . Parts Scanalyzed . | . . . . Part Schematics Acquired . | . . . . Parts Damaged . | . . . . Bothacking | -11 -10 -10 -9 ------------ Run | Scr Mat Min Mat Used RIF Installer . | . . . . Robots Hacked . | . . . . Non-combat . | . . . . Combat . | . . . . Robot Hacks Applied . | . . . . Relay Couplers Released . | . . . . Fabnet Peak Effective % . | . . . . Robots Rewired . | . . . . Allies Hacked . | . . . . Hacks Repelled . | . . . . Allies | -11 -10 -10 -9 -------- Run | Scr Mat Min Mat Total Allies . | . . . . Largest Group . | . . . . Highest-Rated Group . | . . . . Highest-Rated Ally . | . . . . Total Orders . | . . . . Ally Attacks . | . . . . Total Damage . | . . . . Kills . | . . . . Allies Corrupted . | . . . . Allies Melted . | . . . . Intel | -11 -10 -10 -9 ------- Run | Scr Mat Min Mat Robot Analysis Total 1 | . 1 . . Derelict Logs Recovered . | . . . . Drone Launches . | . . . . Drone Recoveries . | . . . . Exploration | -11 -10 -10 -9 ------------- Run | Scr Mat Min Mat Turns Passed 308 | . 211 24 73 Spaces Moved 336 | 1 209 57 69 Core 257 | . 209 21 27 Treads 1 | 1 . . . Legs . | . . . . Wheels . | . . . . Hover . | . . . . Flight 78 | . . 36 42 Fastest Speed 37 | 160 50 37 37 Average Speed 47 | 160 50 41 42 Slowest Speed 160 | 160 50 50 50 Overloaded Moves . | . . . . Propulsion Burnouts . | . . . . Robots Hopped 2 | . . 2 . Cave-ins Triggered . | . . . . Exploration Rate (%) 20 | 2 45 22 13 Regions Visited 3 Branch Regions 1 Pre-discovered Areas . | . . . . Known Exits Taken . | . . . . Unknown Exits Taken 3 | 1 1 1 . Scrap Searched . | . . . . Spaces Dug 12 | . 12 . . Terrain Destroyed 108 | . 108 . . Melee . | . . . . Projectile . | . . . . AOE 108 | . 108 . . Terrain Rammed . | . . . . Walls Destroyed . | . . . . Machines Disabled . | . . . . Actions | -11 -10 -10 -9 --------- Run | Scr Mat Min Mat Total 400 | . 249 54 97 Wait 8 | . . . 8 Move 330 | . 208 53 69 Hop 1 | . . 1 . Pick Up . | . . . . Fast Attach . | . . . . Attach 1 | . . . 1 Detach 2 | . . . 2 Swap 1 | . . . 1 Drop . | . . . . Fire 32 | . 17 . 15 Melee 24 | . 24 . . Ram 1 | . . . 1 Kick . | . . . . Crush . | . . . . Escape Stasis . | . . . . Rewire . | . . . . Trap . | . . . . Miscellaneous . | . . . . Route ------- -11/Scrapyard -10/Materials -10/Mines -9/Materials (discovered 3 exits: Mat x3) History --------- Turn | Location | Event 1 | -11/Scrapyard | Discovered new exit (range 0) 1 | -11/Scrapyard | Entered Materials 108 | -10/Materials | Discovered new exit (range 15) 109 | -10/Materials | Central database locked down 185 | -10/Materials | Core integrity fell below 50% 193 | -10/Materials | Core integrity fell below 20% 212 | -10/Materials | Entered Mines 233 | -10/Mines | Discovered new exit (range 7) 236 | -10/Mines | Entered Materials 236 | -9/Materials | Evolved 2 slots: Utility x2 249 | -9/Materials | Identified exit to Materials 309 | -9/Materials | Self-destructed Last Messages --------------- 00251_ Switching to secondary target: G-47 Trooper. 00259_ Critical hit (Burn: +37). 00259_ K-01 Serf destroyed. 00261_ Flight Unit destroyed. [You open your loot box...] [Congratulations on your very own Enh. Autogun!] 00267_ Critical hit (Burn: +37). 00269_ G-47 Trooper IFF system glitched. 00270_ U-05 Engineer destroyed. 00274_ Flight Unit destroyed. 00278_ Connecting with Terminal... >>Force(Sabotage) SYSTEM_VULNERABLE[Nuclear Reactor] NETWORK_OVERLOAD_FAIL 00278_ ALERT: Suspicious activity at Terminal M008. Dispatching Investigation squad. 00287_ Slammed into U-05 Engineer. 00297_ S-10 Pest destroyed. 00309_ Critical hit (Destroy). 00309_ Hvy. EM Pulse Gun destroyed. Map ----- +----------------------------------------------------+ | | | | | | | | | | | | | | | | | | | | | | | | | | | ?????????????????????????????????????????????????? | | ?????????????????????????????????????????????????? | | ??????????????????????????????#############??????? | | ??????????????????????????????? # #??????? | | ????????????????????????????? # #??????? | | ???????????????????????????? """ # #????### | | ????????????????????########""""" # ##### | | ????????????????????# #""""" # + | | ????????????????????# """ #""""" # ## | | ????????????????????# """ # """ # ## % | | ????????????????????# """ # # % #T | | ????????????????????# #######+### ## | | ????????????????????# %@ #???# ###/### | | ????????????????########s####### | | ?????????????+ gg | | ????????????????################ | | ???????????????????????????????# ###+### | | ???????????????????????????????######## T ## ## | | ??????????????????????????????????????# ## #? | | ??????????????????????????????????????# ## #? | | ??????????????????????????????????????# ## #? | | ??????????????????????????????????????# ## #? | | ??????????????????????????????????????# ## #? | | ??????????????????????????????????????# ## ## | | ??????????????????????????????????????# # # | | ??????????????????????????????????????# # | | ??????????????????????????????????????###### | | ???????????????????????????????????????????# | | ???????????????????????????????????????????# # | | ???????????????????????????????????????????####### | | ?????????????????????????????????????????????????# | | ?????????????????????????????????????????????????# | | ?????????????????????????????????????????????????# | | ?????????????????????????????????????????????????# | | ?????????????????????????????????????????????????# | | ?????????????????????????????????????????????????# | | ?????????????????????????????????????????????????# | +----------------------------------------------------+ Best States ------------- Heat Dissipation 28 Energy Generation 5 Energy Capacity 100 Matter Stores 144 Matter Capacity 300 Sight Range 16 Terrain Scan Density 10 Evasion (%) 62 Targeting Accuracy 8 Recoil Reduction 1 Offensive Hacking 10 Item Schematics ----------------- None Robot Schematics ------------------ None Fabricated ------------ Nothing Alien Tech Used ----------------- None Achievements -------------- None Challenges ------------ None Cogshop Purchases (10) ------------------------ Imp. Treads (Loot Box) Mining Claw (Loot Box) Mni. Grenade Launcher (1049) Flight Unit (841) Flight Unit (841) Hacking Suite (1164) Hvy. EM Pulse Gun (685) Hvy. EM Pulse Gun (685) Adv. Targeting Computer (775) Enh. Autogun (Loot Box) Game ------ Seed NavigationLatentInjector Manual? 0 Play Time 00:12:30 Cumulative 223.3 hours Start 2022.06.09 @ 11:52:59 End 2022.06.09 @ 12:07:36 Sessions 1 Manual Loads 0 Difficulty Rogue Special Mode AFD2019/Pay2Buy Game No. 281 Rogue 281 Adventurer 0 Explorer 0 Win Type - Total 11 Types 8/0/2/1/0/0/0/0/0 Lore% 64 Gallery% 84 Achievement% 73 Wizard Run 0 Options --------- ASCII 0 Keyboard 0 Movement Numpad Keybinds 0 Fullscreen 1 Font 18/Terminus Map View 76x50 Tactical HUD 1 Map Filters NONE Filters NONE Steam 1 RUN: 20353c8e-a73c-4990-a9df-40b5819244f3